[Event "Titled Tuesday Blitz August 16 Late 2022"]
[White "Al-Tarboush, Ward"]
[Black "Pinheiro, Iung Alicio de O."]
[WhiteFideId "7601450"]
[BlackFideId "2104350"]
[WhiteElo "2234"]
[BlackElo "2283"]
[Result "1-0"]
[Round "07"]
[TimeControl "180+1"]
[Date "2022.08.16"]
[WhiteClock "0:00:33"]
[BlackClock "0:00:00"]

1. e4 {[%clk 0:02:59]}  c5 {[%clk 0:02:59]} 2. Nf3 {[%clk 0:02:59]}  Nc6 {[%clk 0:02:59]} 3. d4 {[%clk 0:02:59]}  cxd4 {[%clk 0:02:59]} 4. Nxd4 {[%clk 0:03:00]}  e5 {[%clk 0:02:59]} 5. Nb5 {[%clk 0:03:00]}  d6 {[%clk 0:02:59]} 6. c4 {[%clk 0:03:01]}  Be7 {[%clk 0:02:57]} 7. N1c3 {[%clk 0:02:59]}  a6 {[%clk 0:02:57]} 8. Na3 {[%clk 0:02:59]}  f5 {[%clk 0:02:57]} 9. Bd3 {[%clk 0:02:58]}  f4 {[%clk 0:02:56]} 10. Nc2 {[%clk 0:02:56]}  Nf6 {[%clk 0:02:56]} 11. Bd2 {[%clk 0:02:56]}  O-O {[%clk 0:02:56]} 12. Qe2 {[%clk 0:02:56]}  Bg4 {[%clk 0:02:54]} 13. f3 {[%clk 0:02:56]}  Be6 {[%clk 0:02:49]} 14. O-O-O {[%clk 0:02:55]}  b5 {[%clk 0:02:41]} 15. Nd5 {[%clk 0:02:49]}  Qb8 {[%clk 0:02:22]} 16. g4 {[%clk 0:02:36]}  Bd8 {[%clk 0:02:00]} 17. h4 {[%clk 0:02:25]}  Nd7 {[%clk 0:01:59]} 18. cxb5 {[%clk 0:02:01]}  axb5 {[%clk 0:01:57]} 19. Bxb5 {[%clk 0:02:02]}  Rxa2 {[%clk 0:01:43]} 20. Qc4 {[%clk 0:01:57]}  Rxb2 {[%clk 0:00:57]} 21. Kxb2 {[%clk 0:01:52]}  Na7 {[%clk 0:00:57]} 22. Na3 {[%clk 0:01:49]}  Bb6 {[%clk 0:00:31]} 23. Ka2 {[%clk 0:01:48]}  Nxb5 {[%clk 0:00:29]} 24. Qxb5 {[%clk 0:01:45]}  Qa7 {[%clk 0:00:28]} 25. Bb4 {[%clk 0:01:44]}  Ra8 {[%clk 0:00:21]} 26. Rd3 {[%clk 0:01:25]}  Bc5 {[%clk 0:00:20]} 27. Rb1 {[%clk 0:01:10]}  Kf7 {[%clk 0:00:07]} 28. g5 {[%clk 0:01:08]}  g6 {[%clk 0:00:07]} 29. Bxc5 {[%clk 0:00:46]}  Nxc5 {[%clk 0:00:06]} 30. Rc3 {[%clk 0:00:46]}  Bxd5+ {[%clk 0:00:04]} 31. exd5 {[%clk 0:00:45]}  Kg8 {[%clk 0:00:01]} 32. Qb6 {[%clk 0:00:36]}  Qd7 {[%clk 0:00:00]} 33. Qc6 {[%clk 0:00:33]} 1-0


[Site "https://www.chess.com"]

[Event "Titled Tuesday Blitz August 16 Late 2022"]
[White "Altman, Joshua"]
[Black "Csonka, Balazs"]
[WhiteFideId "426210"]
[BlackFideId "742910"]
[WhiteElo "1945"]
[BlackElo "2404"]
[Result "0-1"]
[Round "07"]
[TimeControl "180+1"]
[Date "2022.08.18"]
[WhiteClock "0:00:00"]
[BlackClock "0:00:00"]

1. d4 {[%clk 0:00:00]}  d5 {[%clk 0:00:00]} 2. c4 {[%clk 0:00:00]}  c6 {[%clk 0:00:00]} 3. cxd5 {[%clk 0:00:00]}  cxd5 {[%clk 0:00:00]} 4. Nf3 {[%clk 0:00:00]}  Nc6 {[%clk 0:00:00]} 5. Nc3 {[%clk 0:00:00]}  Nf6 {[%clk 0:00:00]} 6. Bf4 {[%clk 0:00:00]}  Nh5 {[%clk 0:00:00]} 7. Bg5 {[%clk 0:00:00]}  h6 {[%clk 0:00:00]} 8. Bd2 {[%clk 0:00:00]}  Nf6 {[%clk 0:00:00]} 9. e3 {[%clk 0:00:00]}  a6 {[%clk 0:00:00]} 10. Bd3 {[%clk 0:00:00]}  Bg4 {[%clk 0:00:00]} 11. O-O {[%clk 0:00:00]}  e6 {[%clk 0:00:00]} 12. h3 {[%clk 0:00:00]}  Bxf3 {[%clk 0:00:00]} 13. Qxf3 {[%clk 0:00:00]}  Bb4 {[%clk 0:00:00]} 14. Rac1 {[%clk 0:00:00]}  O-O {[%clk 0:00:00]} 15. a3 {[%clk 0:00:00]}  Bxc3 {[%clk 0:00:00]} 16. bxc3 {[%clk 0:00:00]}  b5 {[%clk 0:00:00]} 17. e4 {[%clk 0:00:00]}  dxe4 {[%clk 0:00:00]} 18. Bxe4 {[%clk 0:00:00]}  Nxe4 {[%clk 0:00:00]} 19. Qxe4 {[%clk 0:00:00]}  Qd5 {[%clk 0:00:00]} 20. Qg4 {[%clk 0:00:00]}  Kh7 {[%clk 0:00:00]} 21. Rce1 {[%clk 0:00:00]}  Rad8 {[%clk 0:00:00]} 22. Re3 {[%clk 0:00:00]}  f5 {[%clk 0:00:00]} 23. Qf4 {[%clk 0:00:00]}  e5 {[%clk 0:00:00]} 24. Qh4 {[%clk 0:00:00]}  f4 {[%clk 0:00:00]} 25. Rf3 {[%clk 0:00:00]}  g5 {[%clk 0:00:00]} 26. Qh5 {[%clk 0:00:00]}  e4 {[%clk 0:00:00]} 27. c4 {[%clk 0:00:00]}  bxc4 {[%clk 0:00:00]} 28. Rc3 {[%clk 0:00:00]}  Nxd4 {[%clk 0:00:00]} 29. Kh1 {[%clk 0:00:00]}  e3 {[%clk 0:00:00]} 30. fxe3 {[%clk 0:00:00]}  f3 {[%clk 0:00:00]} 31. Kh2 {[%clk 0:00:00]}  Ne2 {[%clk 0:00:00]} 32. Rxf3 {[%clk 0:00:00]}  Rxf3 {[%clk 0:00:00]} 33. gxf3 {[%clk 0:00:00]}  Nxc3 {[%clk 0:00:00]} 34. Bxc3 {[%clk 0:00:00]}  Qe6 {[%clk 0:00:00]} 35. e4 {[%clk 0:00:00]}  Rd3 {[%clk 0:00:00]} 36. Ba1 {[%clk 0:00:00]}  c3 {[%clk 0:00:00]} 37. Qg4 {[%clk 0:00:00]}  Qxg4 {[%clk 0:00:00]} 38. hxg4 {[%clk 0:00:00]}  c2 {[%clk 0:00:00]} 39. Bb2 {[%clk 0:00:00]}  Rb3 {[%clk 0:00:00]} 40. Bc1 {[%clk 0:00:00]}  Rb1 {[%clk 0:00:00]} 41. Bd2 {[%clk 0:00:00]}  Rd1 {[%clk 0:00:00]} 42. Bc1 {[%clk 0:00:00]}  Rxc1 {[%clk 0:00:00]} 43. e5 {[%clk 0:00:00]}  Re1 {[%clk 0:00:00]} 44. e6 {[%clk 0:00:00]}  Re2+ {[%clk 0:00:00]} 45. Kh3 {[%clk 0:00:00]}  Rxe6 {[%clk 0:00:00]} 46. Kg3 {[%clk 0:00:00]}  Rc6 {[%clk 0:00:00]} 47. Kh3 {[%clk 0:00:00]}  c1=Q {[%clk 0:00:00]} 48. Kg3 {[%clk 0:00:00]}  Qf4+ {[%clk 0:00:00]} 49. Kh3 {[%clk 0:00:00]}  Rc2 {[%clk 0:00:00]} 50. a4 {[%clk 0:00:00]}  Rh2# {[%clk 0:00:00]} 0-1


[Site "https://www.chess.com"]

[Event "Titled Tuesday Blitz August 16 Late 2022"]
[White "Amburgy, Ryan"]
[Black "Abdyzhapar, Asylbek"]
[WhiteFideId "30924820"]
[BlackFideId "13800337"]
[WhiteElo "2066"]
[BlackElo "2323"]
[Result "1-0"]
[Round "07"]
[TimeControl "180+1"]
[Date "2022.08.16"]
[WhiteClock "0:00:22"]
[BlackClock "0:00:09"]

1. d4 {[%clk 0:03:00]}  g6 {[%clk 0:03:00]} 2. c4 {[%clk 0:03:00]}  Bg7 {[%clk 0:03:00]} 3. Nc3 {[%clk 0:03:00]}  d6 {[%clk 0:03:00]} 4. Nf3 {[%clk 0:03:00]}  Nf6 {[%clk 0:03:00]} 5. e4 {[%clk 0:03:00]}  O-O {[%clk 0:03:01]} 6. Be2 {[%clk 0:03:01]}  e5 {[%clk 0:03:00]} 7. Be3 {[%clk 0:03:02]}  Ng4 {[%clk 0:02:59]} 8. Bg5 {[%clk 0:03:02]}  f6 {[%clk 0:02:59]} 9. Bh4 {[%clk 0:03:03]}  g5 {[%clk 0:02:58]} 10. Bg3 {[%clk 0:03:04]}  Nh6 {[%clk 0:02:58]} 11. dxe5 {[%clk 0:03:04]}  fxe5 {[%clk 0:02:58]} 12. h4 {[%clk 0:03:03]}  g4 {[%clk 0:02:57]} 13. Ng5 {[%clk 0:03:04]}  Nc6 {[%clk 0:02:56]} 14. c5 {[%clk 0:03:02]}  Nd4 {[%clk 0:02:55]} 15. cxd6 {[%clk 0:02:59]}  cxd6 {[%clk 0:02:54]} 16. Bc4+ {[%clk 0:02:56]}  Kh8 {[%clk 0:02:54]} 17. O-O {[%clk 0:02:55]}  a6 {[%clk 0:02:54]} 18. Ne2 {[%clk 0:02:50]}  Nxe2+ {[%clk 0:02:35]} 19. Qxe2 {[%clk 0:02:51]}  Bf6 {[%clk 0:02:35]} 20. Rad1 {[%clk 0:02:45]}  Qe7 {[%clk 0:02:35]} 21. Qd2 {[%clk 0:02:39]}  Rd8 {[%clk 0:02:33]} 22. Qe3 {[%clk 0:01:50]}  Kg7 {[%clk 0:02:32]} 23. Rd3 {[%clk 0:01:49]}  b5 {[%clk 0:02:30]} 24. Bd5 {[%clk 0:01:49]}  Ra7 {[%clk 0:02:29]} 25. Rc1 {[%clk 0:01:41]}  Rc7 {[%clk 0:02:27]} 26. Rdc3 {[%clk 0:01:42]}  Rxc3 {[%clk 0:02:24]} 27. Rxc3 {[%clk 0:01:43]}  Ng8 {[%clk 0:02:19]} 28. Qb6 {[%clk 0:01:32]}  h6 {[%clk 0:02:17]} 29. Nf7 {[%clk 0:01:31]}  Rf8 {[%clk 0:02:13]} 30. Rc7 {[%clk 0:01:30]}  Bd7 {[%clk 0:02:10]} 31. Nxd6 {[%clk 0:01:30]}  Kh8 {[%clk 0:01:59]} 32. Nf5 {[%clk 0:01:28]}  Qd8 {[%clk 0:01:59]} 33. Qd6 {[%clk 0:01:25]}  Bxf5 {[%clk 0:01:57]} 34. Qxd8 {[%clk 0:01:21]}  Rxd8 {[%clk 0:01:57]} 35. Bxg8 {[%clk 0:01:21]}  Bxe4 {[%clk 0:01:50]} 36. Be6 {[%clk 0:01:21]}  h5 {[%clk 0:01:41]} 37. Rc5 {[%clk 0:01:11]}  Rd1+ {[%clk 0:01:14]} 38. Kh2 {[%clk 0:01:11]}  Rd2 {[%clk 0:01:15]} 39. Bf7 {[%clk 0:01:05]}  Rxb2 {[%clk 0:01:05]} 40. Rxe5 {[%clk 0:01:02]}  Kg7 {[%clk 0:00:51]} 41. Be6 {[%clk 0:00:32]}  Bg6 {[%clk 0:00:47]} 42. Rc5 {[%clk 0:00:32]}  Rc2 {[%clk 0:00:41]} 43. Rd5 {[%clk 0:00:30]}  Re2 {[%clk 0:00:31]} 44. Rd7+ {[%clk 0:00:30]}  Kf8 {[%clk 0:00:31]} 45. Bb3 {[%clk 0:00:30]}  Be7 {[%clk 0:00:28]} 46. Ra7 {[%clk 0:00:28]}  Bf7 {[%clk 0:00:22]} 47. Bxf7 {[%clk 0:00:26]}  Kxf7 {[%clk 0:00:22]} 48. Bd6 {[%clk 0:00:25]}  Kf6 {[%clk 0:00:11]} 49. Bxe7+ {[%clk 0:00:25]}  Rxe7 {[%clk 0:00:11]} 50. Rxa6+ {[%clk 0:00:26]}  Kf5 {[%clk 0:00:10]} 51. Ra5 {[%clk 0:00:26]}  Re5 {[%clk 0:00:11]} 52. Kg3 {[%clk 0:00:26]}  Rd5 {[%clk 0:00:11]} 53. f3 {[%clk 0:00:26]}  Re5 {[%clk 0:00:11]} 54. fxg4+ {[%clk 0:00:23]}  hxg4 {[%clk 0:00:11]} 55. Ra3 {[%clk 0:00:23]}  b4 {[%clk 0:00:10]} 56. Rb3 {[%clk 0:00:23]}  Re4 {[%clk 0:00:10]} 57. a3 {[%clk 0:00:23]}  bxa3 {[%clk 0:00:10]} 58. Rxa3 {[%clk 0:00:24]}  Rb4 {[%clk 0:00:11]} 59. Ra5+ {[%clk 0:00:24]}  Kf6 {[%clk 0:00:11]} 60. Rg5 {[%clk 0:00:24]}  Rb3+ {[%clk 0:00:11]} 61. Kxg4 {[%clk 0:00:25]}  Rb4+ {[%clk 0:00:12]} 62. Kh5 {[%clk 0:00:25]}  Rb3 {[%clk 0:00:12]} 63. g3 {[%clk 0:00:24]}  Rb4 {[%clk 0:00:12]} 64. Ra5 {[%clk 0:00:24]}  Rc4 {[%clk 0:00:12]} 65. g4 {[%clk 0:00:23]}  Kg7 {[%clk 0:00:12]} 66. g5 {[%clk 0:00:23]}  Rc6 {[%clk 0:00:13]} 67. Ra7+ {[%clk 0:00:23]}  Kg8 {[%clk 0:00:13]} 68. g6 {[%clk 0:00:23]}  Rc4 {[%clk 0:00:13]} 69. Kg5 {[%clk 0:00:23]}  Rc8 {[%clk 0:00:11]} 70. Kh6 {[%clk 0:00:22]}  Kh8 {[%clk 0:00:11]} 71. h5 {[%clk 0:00:22]}  Rb8 {[%clk 0:00:11]} 72. Rd7 {[%clk 0:00:22]}  Rc8 {[%clk 0:00:11]} 73. Kg5 {[%clk 0:00:23]}  Rb8 {[%clk 0:00:12]} 74. h6 {[%clk 0:00:23]}  Rc8 {[%clk 0:00:11]} 75. Kf6 {[%clk 0:00:23]}  Rb8 {[%clk 0:00:11]} 76. Ke7 {[%clk 0:00:23]}  Rg8 {[%clk 0:00:08]} 77. Rd8 {[%clk 0:00:21]}  Rxd8 {[%clk 0:00:08]} 78. Kxd8 {[%clk 0:00:22]}  Kg8 {[%clk 0:00:09]} 79. Kd7 {[%clk 0:00:23]}  Kf8 {[%clk 0:00:08]} 80. Ke6 {[%clk 0:00:21]}  Kg8 {[%clk 0:00:08]} 81. g7 {[%clk 0:00:21]}  Kh7 {[%clk 0:00:08]} 82. Kf7 {[%clk 0:00:21]}  Kxh6 {[%clk 0:00:09]} 83. g8=Q {[%clk 0:00:22]} 1-0


[Site "https://www.chess.com"]

[Event "Titled Tuesday Blitz August 16 Late 2022"]
[White "Andreikin, Dmitry"]
[Black "So, Wesley"]
[WhiteFideId "4158814"]
[BlackFideId "5202213"]
[WhiteElo "2736"]
[BlackElo "2763"]
[Result "0-1"]
[Round "07"]
[TimeControl "180+1"]
[Date "2022.08.16"]
[WhiteClock "0:00:01"]
[BlackClock "0:00:26"]

1. d4 {[%clk 0:03:00]}  d5 {[%clk 0:02:57]} 2. c4 {[%clk 0:03:01]}  dxc4 {[%clk 0:02:58]} 3. e3 {[%clk 0:02:58]}  Nf6 {[%clk 0:02:57]} 4. Bxc4 {[%clk 0:02:58]}  e6 {[%clk 0:02:58]} 5. Nf3 {[%clk 0:02:58]}  c5 {[%clk 0:02:57]} 6. O-O {[%clk 0:02:58]}  a6 {[%clk 0:02:57]} 7. b3 {[%clk 0:02:58]}  cxd4 {[%clk 0:02:56]} 8. Nxd4 {[%clk 0:02:58]}  Be7 {[%clk 0:02:57]} 9. Bb2 {[%clk 0:02:58]}  O-O {[%clk 0:02:57]} 10. Be2 {[%clk 0:02:53]}  b5 {[%clk 0:02:58]} 11. a4 {[%clk 0:02:47]}  bxa4 {[%clk 0:02:50]} 12. Rxa4 {[%clk 0:02:47]}  Bb7 {[%clk 0:02:50]} 13. Bf3 {[%clk 0:02:45]}  Ra7 {[%clk 0:02:46]} 14. Nb5 {[%clk 0:02:29]}  Bxf3 {[%clk 0:02:36]} 15. Qxd8 {[%clk 0:02:23]}  Rxd8 {[%clk 0:02:36]} 16. Nxa7 {[%clk 0:02:23]}  Bb7 {[%clk 0:02:25]} 17. Rc1 {[%clk 0:02:17]}  Ne4 {[%clk 0:02:06]} 18. Nc8 {[%clk 0:02:00]}  Bc5 {[%clk 0:01:49]} 19. Bd4 {[%clk 0:01:31]}  Rxc8 {[%clk 0:01:42]} 20. f3 {[%clk 0:01:01]}  Bc6 {[%clk 0:01:13]} 21. fxe4 {[%clk 0:00:44]}  Bxa4 {[%clk 0:01:14]} 22. bxa4 {[%clk 0:00:43]}  Nd7 {[%clk 0:01:14]} 23. Nd2 {[%clk 0:00:38]}  e5 {[%clk 0:01:12]} 24. Kf1 {[%clk 0:00:25]}  Rc7 {[%clk 0:00:57]} 25. Bxc5 {[%clk 0:00:24]}  Rxc5 {[%clk 0:00:58]} 26. Rb1 {[%clk 0:00:23]}  h5 {[%clk 0:00:55]} 27. Ke2 {[%clk 0:00:15]}  Rc2 {[%clk 0:00:55]} 28. Rb7 {[%clk 0:00:12]}  Nf6 {[%clk 0:00:46]} 29. Kd3 {[%clk 0:00:11]}  Ra2 {[%clk 0:00:46]} 30. Re7 {[%clk 0:00:09]}  Ng4 {[%clk 0:00:42]} 31. h3 {[%clk 0:00:06]}  Nf2+ {[%clk 0:00:35]} 32. Kc3 {[%clk 0:00:05]}  f6 {[%clk 0:00:34]} 33. Ra7 {[%clk 0:00:02]}  Nd1+ {[%clk 0:00:34]} 34. Kd3 {[%clk 0:00:02]}  Nf2+ {[%clk 0:00:34]} 35. Kc3 {[%clk 0:00:02]}  Rxa4 {[%clk 0:00:34]} 36. Kb3 {[%clk 0:00:02]}  Ra1 {[%clk 0:00:34]} 37. Kc4 {[%clk 0:00:03]}  Ra2 {[%clk 0:00:33]} 38. Nf3 {[%clk 0:00:01]}  Nxe4 {[%clk 0:00:32]} 39. Nh4 {[%clk 0:00:01]}  Ra4+ {[%clk 0:00:30]} 40. Kd5 {[%clk 0:00:01]}  Nc3+ {[%clk 0:00:30]} 41. Ke6 {[%clk 0:00:02]}  Rxh4 {[%clk 0:00:30]} 42. Ra8+ {[%clk 0:00:01]}  Kh7 {[%clk 0:00:30]} 43. Kf7 {[%clk 0:00:02]}  Ne4 {[%clk 0:00:27]} 44. Kf8 {[%clk 0:00:01]}  Ng5 {[%clk 0:00:26]} 45. Ra7 {[%clk 0:00:01]}  Kh6 {[%clk 0:00:26]} 46. Kg8 {[%clk 0:00:01]}  Rb4 {[%clk 0:00:26]} 0-1


[Site "https://www.chess.com"]

[Event "Titled Tuesday Blitz August 16 Late 2022"]
[White "Averjanov, Alexey"]
[Black "Harvey, Marcus R"]
[WhiteFideId "14109867"]
[BlackFideId "400092"]
[WhiteElo "2606"]
[BlackElo "2485"]
[Result "0-1"]
[Round "07"]
[TimeControl "180+1"]
[Date "2022.08.16"]
[WhiteClock "0:01:12"]
[BlackClock "0:00:11"]

1. d4 {[%clk 0:02:59]}  e6 {[%clk 0:01:39]} 2. c4 {[%clk 0:02:57]}  f5 {[%clk 0:01:39]} 3. Nf3 {[%clk 0:02:57]}  Nf6 {[%clk 0:01:40]} 4. g3 {[%clk 0:02:58]}  Be7 {[%clk 0:01:40]} 5. Bg2 {[%clk 0:02:59]}  O-O {[%clk 0:01:41]} 6. O-O {[%clk 0:02:59]}  d6 {[%clk 0:01:42]} 7. b3 {[%clk 0:03:00]}  a5 {[%clk 0:01:43]} 8. Bb2 {[%clk 0:03:00]}  Qe8 {[%clk 0:01:43]} 9. Nc3 {[%clk 0:03:01]}  Qg6 {[%clk 0:01:43]} 10. Re1 {[%clk 0:03:00]}  Ne4 {[%clk 0:01:42]} 11. Qc1 {[%clk 0:02:56]}  Bf6 {[%clk 0:01:35]} 12. Qc2 {[%clk 0:02:56]}  Nc6 {[%clk 0:01:31]} 13. e3 {[%clk 0:02:55]}  Nb4 {[%clk 0:01:31]} 14. Qe2 {[%clk 0:02:54]}  Bd7 {[%clk 0:01:20]} 15. a3 {[%clk 0:02:52]}  Na6 {[%clk 0:01:14]} 16. Rac1 {[%clk 0:02:51]}  c6 {[%clk 0:01:00]} 17. Nd2 {[%clk 0:02:50]}  Nxd2 {[%clk 0:00:58]} 18. Qxd2 {[%clk 0:02:50]}  d5 {[%clk 0:00:58]} 19. f4 {[%clk 0:02:48]}  b5 {[%clk 0:00:54]} 20. cxb5 {[%clk 0:02:47]}  cxb5 {[%clk 0:00:55]} 21. Ne2 {[%clk 0:02:47]}  b4 {[%clk 0:00:52]} 22. a4 {[%clk 0:02:46]}  Rfc8 {[%clk 0:00:49]} 23. Rxc8+ {[%clk 0:02:46]}  Rxc8 {[%clk 0:00:49]} 24. Rc1 {[%clk 0:02:47]}  Qe8 {[%clk 0:00:49]} 25. Bf1 {[%clk 0:02:45]}  Nb8 {[%clk 0:00:48]} 26. Rxc8 {[%clk 0:02:42]}  Qxc8 {[%clk 0:00:47]} 27. Nc1 {[%clk 0:02:43]}  Be7 {[%clk 0:00:41]} 28. Nd3 {[%clk 0:02:43]}  Bd6 {[%clk 0:00:42]} 29. Kf2 {[%clk 0:02:42]}  Nc6 {[%clk 0:00:41]} 30. Qc2 {[%clk 0:02:40]}  Ne7 {[%clk 0:00:41]} 31. Qxc8+ {[%clk 0:02:39]}  Bxc8 {[%clk 0:00:40]} 32. Nc5 {[%clk 0:02:39]}  Kf7 {[%clk 0:00:39]} 33. Bb5 {[%clk 0:02:38]}  h6 {[%clk 0:00:36]} 34. Kf3 {[%clk 0:02:38]}  g5 {[%clk 0:00:36]} 35. h3 {[%clk 0:02:38]}  Ng8 {[%clk 0:00:34]} 36. g4 {[%clk 0:02:37]}  fxg4+ {[%clk 0:00:32]} 37. hxg4 {[%clk 0:02:38]}  Nf6 {[%clk 0:00:30]} 38. Bc1 {[%clk 0:02:36]}  Bxc5 {[%clk 0:00:15]} 39. dxc5 {[%clk 0:02:37]}  Ne4 {[%clk 0:00:15]} 40. c6 {[%clk 0:02:37]}  Ke7 {[%clk 0:00:14]} 41. Bb2 {[%clk 0:02:37]}  Nd2+ {[%clk 0:00:12]} 42. Ke2 {[%clk 0:02:36]}  Nxb3 {[%clk 0:00:13]} 43. Bg7 {[%clk 0:02:33]}  gxf4 {[%clk 0:00:13]} 44. exf4 {[%clk 0:02:34]}  Nc5 {[%clk 0:00:07]} 45. Bxh6 {[%clk 0:02:33]}  b3 {[%clk 0:00:08]} 46. Bg5+ {[%clk 0:02:31]}  Kd6 {[%clk 0:00:07]} 47. Kd1 {[%clk 0:02:32]}  Ba6 {[%clk 0:00:07]} 48. Bf6 {[%clk 0:02:26]}  Bxb5 {[%clk 0:00:07]} 49. axb5 {[%clk 0:02:27]}  a4 {[%clk 0:00:07]} 50. Be5+ {[%clk 0:02:25]}  Ke7 {[%clk 0:00:08]} 51. b6 {[%clk 0:02:25]}  a3 {[%clk 0:00:08]} 52. b7 {[%clk 0:02:25]}  b2 {[%clk 0:00:08]} 53. Kc2 {[%clk 0:02:24]}  Na6 {[%clk 0:00:08]} 54. b8=Q {[%clk 0:02:22]}  Nxb8 {[%clk 0:00:08]} 55. Bxb8 {[%clk 0:02:23]}  d4 {[%clk 0:00:08]} 56. Kb1 {[%clk 0:01:26]}  d3 {[%clk 0:00:09]} 57. Ba7 {[%clk 0:01:24]}  d2 {[%clk 0:00:09]} 58. Bc5+ {[%clk 0:01:22]}  Kd8 {[%clk 0:00:09]} 59. Bxa3 {[%clk 0:01:19]}  d1=Q+ {[%clk 0:00:10]} 60. Kxb2 {[%clk 0:01:20]}  Qd4+ {[%clk 0:00:10]} 61. Kb3 {[%clk 0:01:15]}  Qxf4 {[%clk 0:00:11]} 62. Bc5 {[%clk 0:01:12]}  Qf3+ {[%clk 0:00:11]} 0-1


[Site "https://www.chess.com"]

[Event "Titled Tuesday Blitz August 16 Late 2022"]
[White "Badmatsyrenov, Oleg"]
[Black "Kamsky, Gata"]
[WhiteFideId "24115762"]
[BlackFideId "2000024"]
[WhiteElo "2403"]
[BlackElo "2666"]
[Result "1-0"]
[Round "07"]
[TimeControl "180+1"]
[Date "2022.08.16"]
[WhiteClock "0:00:25"]
[BlackClock "0:00:16"]

1. e4 {[%clk 0:02:58]}  e5 {[%clk 0:02:58]} 2. Nc3 {[%clk 0:02:57]}  Nc6 {[%clk 0:02:56]} 3. f4 {[%clk 0:02:50]}  exf4 {[%clk 0:02:52]} 4. Nf3 {[%clk 0:02:50]}  d6 {[%clk 0:02:47]} 5. d4 {[%clk 0:02:48]}  g5 {[%clk 0:02:46]} 6. h4 {[%clk 0:02:32]}  g4 {[%clk 0:02:45]} 7. Ng5 {[%clk 0:02:33]}  h6 {[%clk 0:02:24]} 8. Nxf7 {[%clk 0:02:32]}  Kxf7 {[%clk 0:02:24]} 9. Bxf4 {[%clk 0:02:29]}  Nf6 {[%clk 0:02:09]} 10. Qd2 {[%clk 0:02:20]}  Nh5 {[%clk 0:02:06]} 11. Bc4+ {[%clk 0:02:01]}  Kg7 {[%clk 0:02:04]} 12. Be3 {[%clk 0:01:52]}  Be7 {[%clk 0:01:48]} 13. O-O-O {[%clk 0:01:47]}  Ng3 {[%clk 0:01:28]} 14. Qf2 {[%clk 0:01:29]}  Rf8 {[%clk 0:00:58]} 15. Qxg3 {[%clk 0:01:30]}  Qe8 {[%clk 0:00:51]} 16. h5 {[%clk 0:01:24]}  Bd7 {[%clk 0:00:44]} 17. Rdf1 {[%clk 0:01:17]}  Bf6 {[%clk 0:00:40]} 18. Qf2 {[%clk 0:01:00]}  Kh7 {[%clk 0:00:26]} 19. Qd2 {[%clk 0:01:00]}  Bg7 {[%clk 0:00:26]} 20. Nd5 {[%clk 0:00:53]}  Rc8 {[%clk 0:00:24]} 21. Bd3 {[%clk 0:00:42]}  Kg8 {[%clk 0:00:23]} 22. Nf4 {[%clk 0:00:37]}  b5 {[%clk 0:00:21]} 23. Ng6 {[%clk 0:00:27]}  Rxf1+ {[%clk 0:00:20]} 24. Rxf1 {[%clk 0:00:28]}  Nxd4 {[%clk 0:00:18]} 25. Bxh6 {[%clk 0:00:29]}  Qe6 {[%clk 0:00:16]} 26. Bxg7 {[%clk 0:00:27]}  Kxg7 {[%clk 0:00:16]} 27. Qg5 {[%clk 0:00:25]} 1-0


[Site "https://www.chess.com"]

[Event "Titled Tuesday Blitz August 16 Late 2022"]
[White "Bartholomew, John"]
[Black "Lenderman, Aleksandr"]
[WhiteFideId "2019353"]
[BlackFideId "2021285"]
[WhiteElo "2705"]
[BlackElo "2607"]
[Result "0-1"]
[Round "07"]
[TimeControl "180+1"]
[Date "2022.08.16"]
[WhiteClock "0:00:04"]
[BlackClock "0:01:03"]

1. d4 {[%clk 0:02:56]}  e6 {[%clk 0:02:54]} 2. c4 {[%clk 0:02:56]}  b6 {[%clk 0:02:49]} 3. Nf3 {[%clk 0:02:52]}  Bb7 {[%clk 0:02:49]} 4. g3 {[%clk 0:02:53]}  Bb4+ {[%clk 0:02:47]} 5. Bd2 {[%clk 0:02:52]}  Bxf3 {[%clk 0:02:46]} 6. exf3 {[%clk 0:02:50]}  Bxd2+ {[%clk 0:02:46]} 7. Qxd2 {[%clk 0:02:48]}  Nf6 {[%clk 0:02:42]} 8. Nc3 {[%clk 0:02:41]}  O-O {[%clk 0:02:41]} 9. d5 {[%clk 0:02:33]}  exd5 {[%clk 0:02:40]} 10. cxd5 {[%clk 0:02:33]}  Re8+ {[%clk 0:02:40]} 11. Be2 {[%clk 0:02:32]}  c5 {[%clk 0:02:40]} 12. dxc6 {[%clk 0:02:24]}  dxc6 {[%clk 0:02:40]} 13. Qxd8 {[%clk 0:02:16]}  Rxd8 {[%clk 0:02:39]} 14. O-O {[%clk 0:02:14]}  Nbd7 {[%clk 0:02:39]} 15. Rfd1 {[%clk 0:02:11]}  Nc5 {[%clk 0:02:38]} 16. b4 {[%clk 0:01:29]}  Ne6 {[%clk 0:02:37]} 17. Bc4 {[%clk 0:01:30]}  Nd4 {[%clk 0:02:36]} 18. Kg2 {[%clk 0:01:28]}  Rd7 {[%clk 0:02:18]} 19. Ne2 {[%clk 0:01:15]}  Rad8 {[%clk 0:02:12]} 20. Nxd4 {[%clk 0:01:13]}  Rxd4 {[%clk 0:02:11]} 21. Rxd4 {[%clk 0:01:14]}  Rxd4 {[%clk 0:02:11]} 22. Rc1 {[%clk 0:01:14]}  Kf8 {[%clk 0:02:08]} 23. Bb3 {[%clk 0:01:10]}  Rd6 {[%clk 0:02:06]} 24. Ba4 {[%clk 0:01:05]}  b5 {[%clk 0:01:55]} 25. Bb3 {[%clk 0:01:05]}  Ke7 {[%clk 0:01:54]} 26. Kf1 {[%clk 0:01:00]}  Nd7 {[%clk 0:01:47]} 27. Re1+ {[%clk 0:00:54]}  Kf8 {[%clk 0:01:47]} 28. Ke2 {[%clk 0:00:50]}  Ne5 {[%clk 0:01:45]} 29. Rb1 {[%clk 0:00:34]}  Ke7 {[%clk 0:01:39]} 30. f4 {[%clk 0:00:31]}  Nd7 {[%clk 0:01:39]} 31. Rc1 {[%clk 0:00:27]}  Nb6 {[%clk 0:01:37]} 32. Rc3 {[%clk 0:00:26]}  f6 {[%clk 0:01:36]} 33. Re3+ {[%clk 0:00:26]}  Kd7 {[%clk 0:01:34]} 34. h4 {[%clk 0:00:24]}  h6 {[%clk 0:01:32]} 35. Kf3 {[%clk 0:00:19]}  Rd4 {[%clk 0:01:27]} 36. a3 {[%clk 0:00:14]}  Nd5 {[%clk 0:01:27]} 37. Bxd5 {[%clk 0:00:12]}  Rxd5 {[%clk 0:01:27]} 38. Kg4 {[%clk 0:00:06]}  h5+ {[%clk 0:01:26]} 39. Kf3 {[%clk 0:00:07]}  c5 {[%clk 0:01:26]} 40. bxc5 {[%clk 0:00:06]}  Rxc5 {[%clk 0:01:26]} 41. g4 {[%clk 0:00:07]}  a5 {[%clk 0:01:23]} 42. Rd3+ {[%clk 0:00:06]}  Kc7 {[%clk 0:01:22]} 43. Re3 {[%clk 0:00:06]}  hxg4+ {[%clk 0:01:13]} 44. Kxg4 {[%clk 0:00:07]}  b4 {[%clk 0:01:09]} 45. axb4 {[%clk 0:00:07]}  axb4 {[%clk 0:01:10]} 46. Re7+ {[%clk 0:00:07]}  Kc6 {[%clk 0:01:10]} 47. Rxg7 {[%clk 0:00:07]}  b3 {[%clk 0:01:10]} 48. Rg8 {[%clk 0:00:07]}  Kb7 {[%clk 0:01:03]} 49. Rg7+ {[%clk 0:00:04]}  Rc7 {[%clk 0:01:03]} 0-1


[Site "https://www.chess.com"]